[Event "*** Biggest EVER Titled Tuesday"]
[Site "Chess.com"]
[Date "2018.04.17"]
[Round "5"]
[White "nailbeshirli"]
[Black "FairChess_on_YouTube"]
[Result "0-1"]
[WhiteElo "2305"]
[BlackElo "2892"]
[TimeControl "180+2"]
[EndTime "14:08:47 PDT"]
[Termination "FairChess_on_YouTube won on time"]

1. e4 {[%clk 0:03:01.9]} 1... c5 {[%clk 0:03:00.5]} 2. Nf3 {[%clk 0:03:01]} 2...
e6 {[%clk 0:03:01]} 3. d4 {[%clk 0:03:01.6]} 3... cxd4 {[%clk 0:03:01.9]} 4.
Nxd4 {[%clk 0:03:03.5]} 4... Nc6 {[%clk 0:03:03.2]} 5. Nc3 {[%clk 0:03:02]} 5...
a6 {[%clk 0:03:04.4]} 6. Be3 {[%clk 0:03:02.2]} 6... Nf6 {[%clk 0:03:04.6]} 7.
Qd2 {[%clk 0:03:03.4]} 7... e5 {[%clk 0:03:05.2]} 8. Nf5 {[%clk 0:02:47.9]} 8...
d5 {[%clk 0:03:04.6]} 9. exd5 {[%clk 0:02:45.6]} 9... Nb4 {[%clk 0:03:05.4]} 10.
Ng3 {[%clk 0:02:39.9]} 10... Nbxd5 {[%clk 0:03:04.8]} 11. Nxd5 {[%clk
0:02:38.5]} 11... Qxd5 {[%clk 0:03:04.7]} 12. O-O-O {[%clk 0:02:36.9]} 12... Be6
{[%clk 0:03:03.6]} 13. Qxd5 {[%clk 0:01:56.4]} 13... Nxd5 {[%clk 0:03:05.5]} 14.
Bd3 {[%clk 0:01:50.1]} 14... Nxe3 {[%clk 0:03:01.5]} 15. fxe3 {[%clk 0:01:52]}
15... Bc5 {[%clk 0:02:58.7]} 16. e4 {[%clk 0:01:52.8]} 16... g6 {[%clk
0:02:54.5]} 17. Ne2 {[%clk 0:01:50.9]} 17... Rd8 {[%clk 0:02:44.1]} 18. Nc3
{[%clk 0:01:51]} 18... Ke7 {[%clk 0:02:33.6]} 19. Be2 {[%clk 0:01:47.9]} 19...
Bd4 {[%clk 0:02:29.2]} 20. Bd3 {[%clk 0:01:20.7]} 20... Bxc3 {[%clk 0:02:27.5]}
21. bxc3 {[%clk 0:01:22.6]} 21... Bxa2 {[%clk 0:02:23.9]} 22. Kb2 {[%clk
0:01:09.9]} 22... Be6 {[%clk 0:02:24]} 23. Ra1 {[%clk 0:01:11.5]} 23... Rd6
{[%clk 0:02:22.1]} 24. Ra5 {[%clk 0:01:11.5]} 24... f6 {[%clk 0:02:05.1]} 25.
Rha1 {[%clk 0:01:07.6]} 25... Rc8 {[%clk 0:02:03.5]} 26. R1a4 {[%clk 0:01:05.4]}
26... Rdc6 {[%clk 0:01:56.9]} 27. Rb4 {[%clk 0:01:03.8]} 27... R8c7 {[%clk
0:01:54.6]} 28. Ra3 {[%clk 0:01:01.8]} 28... b5 {[%clk 0:01:54]} 29. Ra5 {[%clk
0:00:53.7]} 29... Bc8 {[%clk 0:01:50.5]} 30. Rb3 {[%clk 0:00:45.2]} 30... Kd6
{[%clk 0:01:51.1]} 31. g3 {[%clk 0:00:25.9]} 31... Rd7 {[%clk 0:01:27.4]} 32. h4
{[%clk 0:00:23.2]} 32... Kc7 {[%clk 0:01:25.2]} 33. Raa3 {[%clk 0:00:21]} 33...
Rdd6 {[%clk 0:01:23.8]} 34. Rb4 {[%clk 0:00:21.1]} 34... Be6 {[%clk 0:01:20.6]}
35. Ra5 {[%clk 0:00:16.5]} 35... Kb6 {[%clk 0:01:15.8]} 36. Ra3 {[%clk 0:00:15]}
36... Rc5 {[%clk 0:01:12.3]} 37. Kc1 {[%clk 0:00:13.4]} 37... f5 {[%clk
0:01:05.1]} 38. exf5 {[%clk 0:00:04.9]} 38... gxf5 {[%clk 0:01:07]} 39. h5
{[%clk 0:00:05]} 39... a5 {[%clk 0:01:03.7]} 40. Rb2 {[%clk 0:00:05.6]} 40... e4
{[%clk 0:01:03.4]} 41. Be2 {[%clk 0:00:06.6]} 41... Bc4 {[%clk 0:01:04.2]} 42.
Bd1 {[%clk 0:00:05.2]} 42... e3 {[%clk 0:01:03.4]} 0-1

[Event "*** Biggest EVER Titled Tuesday"]
[Site "Chess.com"]
[Date "2018.04.17"]
[Round "5"]
[White "Kislov_Oleg"]
[Black "MateusViageiro"]
[Result "1/2-1/2"]
[WhiteElo "2268"]
[BlackElo "2221"]
[TimeControl "180+2"]
[EndTime "14:08:54 PDT"]
[Termination "Game drawn by agreement"]

1. e4 {[%clk 0:03:01.9]} 1... c5 {[%clk 0:03:00.3]} 2. Nf3 {[%clk 0:03:02.6]}
2... d6 {[%clk 0:03:00.6]} 3. c3 {[%clk 0:03:03.5]} 3... Nf6 {[%clk 0:02:52.6]}
4. Be2 {[%clk 0:03:04.2]} 4... e6 {[%clk 0:02:47.3]} 5. O-O {[%clk 0:02:52.7]}
5... Be7 {[%clk 0:02:48.2]} 6. Re1 {[%clk 0:02:48.1]} 6... O-O {[%clk
0:02:45.5]} 7. Bf1 {[%clk 0:02:49.1]} 7... b6 {[%clk 0:02:44.3]} 8. d4 {[%clk
0:02:49.3]} 8... Bb7 {[%clk 0:02:42.7]} 9. Nbd2 {[%clk 0:02:50]} 9... Nbd7
{[%clk 0:02:43.2]} 10. a4 {[%clk 0:02:33.2]} 10... Rc8 {[%clk 0:02:41.3]} 11.
Qb3 {[%clk 0:02:29.2]} 11... Bc6 {[%clk 0:02:19.6]} 12. e5 {[%clk 0:02:24.2]}
12... Nd5 {[%clk 0:02:07.4]} 13. Ne4 {[%clk 0:02:20.9]} 13... dxe5 {[%clk
0:02:02.9]} 14. dxe5 {[%clk 0:02:20.8]} 14... Qc7 {[%clk 0:01:57.4]} 15. Bg5
{[%clk 0:01:38.4]} 15... Bxg5 {[%clk 0:01:32.9]} 16. Nexg5 {[%clk 0:01:39.1]}
16... h6 {[%clk 0:01:29.9]} 17. Nh3 {[%clk 0:01:30.5]} 17... Ne7 {[%clk
0:01:26.3]} 18. Nd2 {[%clk 0:01:09.8]} 18... Nxe5 {[%clk 0:01:19.6]} 19. a5
{[%clk 0:00:59.4]} 19... Nf5 {[%clk 0:00:53.4]} 20. axb6 {[%clk 0:00:54.6]}
20... axb6 {[%clk 0:00:54.2]} 21. Nc4 {[%clk 0:00:42.3]} 21... Ng4 {[%clk
0:00:35]} 22. g3 {[%clk 0:00:37.3]} 22... Nh4 {[%clk 0:00:32.8]} 23. Be2 {[%clk
0:00:33.5]} 23... Nf3+ {[%clk 0:00:12.2]} 24. Bxf3 {[%clk 0:00:34.8]} 24... Bxf3
{[%clk 0:00:14.1]} 25. Qxb6 {[%clk 0:00:36.4]} 25... Qxb6 {[%clk 0:00:14.9]} 26.
Nxb6 {[%clk 0:00:37.4]} 26... Rb8 {[%clk 0:00:16.6]} 27. Nd7 {[%clk 0:00:38.6]}
27... Rxb2 {[%clk 0:00:17.7]} 28. Nxf8 {[%clk 0:00:39.7]} 28... Kxf8 {[%clk
0:00:19.6]} 29. Ra5 {[%clk 0:00:30.1]} 29... c4 {[%clk 0:00:19.2]} 30. Rc5
{[%clk 0:00:30.3]} 30... Bd5 {[%clk 0:00:19.3]} 31. Nf4 {[%clk 0:00:26.6]} 31...
Nxf2 {[%clk 0:00:16.3]} 32. Rc8+ {[%clk 0:00:27.4]} 32... Ke7 {[%clk 0:00:15.6]}
33. Nxd5+ {[%clk 0:00:28.4]} 33... Kd7 {[%clk 0:00:17.1]} 34. Rxc4 {[%clk
0:00:20.5]} 34... Nh3+ {[%clk 0:00:17.5]} 35. Kh1 {[%clk 0:00:21]} 35... Nf2+
{[%clk 0:00:18.6]} 36. Kg1 {[%clk 0:00:22.3]} 36... Nh3+ {[%clk 0:00:19.9]} 37.
Kh1 {[%clk 0:00:23.6]} 37... Nf2+ {[%clk 0:00:19.5]} 1/2-1/2

[Event "*** Biggest EVER Titled Tuesday"]
[Site "Chess.com"]
[Date "2018.04.17"]
[Round "5"]
[White "carlesdc96"]
[Black "GadimbayliA"]
[Result "0-1"]
[WhiteElo "2461"]
[BlackElo "2425"]
[TimeControl "180+2"]
[EndTime "14:09:10 PDT"]
[Termination "GadimbayliA won by resignation"]

1. e4 {[%clk 0:03:01.9]} 1... e6 {[%clk 0:02:59.9]} 2. d4 {[%clk 0:03:02.2]}
2... d5 {[%clk 0:03:00.2]} 3. Nc3 {[%clk 0:03:03.1]} 3... Bb4 {[%clk 0:03:00.1]}
4. e5 {[%clk 0:03:04.5]} 4... c5 {[%clk 0:03:00.8]} 5. Bd2 {[%clk 0:03:05.8]}
5... Ne7 {[%clk 0:03:00]} 6. a3 {[%clk 0:03:06.8]} 6... Bxc3 {[%clk 0:02:47.9]}
7. Bxc3 {[%clk 0:03:08.7]} 7... Nbc6 {[%clk 0:02:48.9]} 8. Nf3 {[%clk
0:03:04.3]} 8... cxd4 {[%clk 0:02:48.5]} 9. Bxd4 {[%clk 0:03:04.9]} 9... Nxd4
{[%clk 0:02:47.1]} 10. Qxd4 {[%clk 0:03:05]} 10... Nc6 {[%clk 0:02:46.5]} 11.
Qg4 {[%clk 0:03:05]} 11... Kf8 {[%clk 0:02:44.1]} 12. Bd3 {[%clk 0:03:05.2]}
12... Qb6 {[%clk 0:02:42.7]} 13. b4 {[%clk 0:03:04]} 13... Qc7 {[%clk
0:02:39.8]} 14. Qg3 {[%clk 0:03:01.3]} 14... Nd4 {[%clk 0:02:29.5]} 15. Nxd4
{[%clk 0:02:52.4]} 15... Qc3+ {[%clk 0:02:29.8]} 16. Ke2 {[%clk 0:02:52.7]}
16... Qxd4 {[%clk 0:02:30.8]} 17. f4 {[%clk 0:02:47.7]} 17... Bd7 {[%clk
0:02:29.2]} 18. Qe3 {[%clk 0:02:48.4]} 18... Qc3 {[%clk 0:02:26.3]} 19. Qd2
{[%clk 0:02:47.5]} 19... Qc6 {[%clk 0:01:24.2]} 20. b5 {[%clk 0:02:37.8]} 20...
Qc5 {[%clk 0:01:24.1]} 21. Qb4 {[%clk 0:02:38]} 21... Rc8 {[%clk 0:01:24.7]} 22.
Rhb1 {[%clk 0:02:35.2]} 22... Ke7 {[%clk 0:01:24.1]} 23. a4 {[%clk 0:02:30.6]}
23... Rhd8 {[%clk 0:01:20.1]} 24. Qxc5+ {[%clk 0:02:06.1]} 24... Rxc5 {[%clk
0:01:20.4]} 25. b6 {[%clk 0:02:07.1]} 25... a5 {[%clk 0:01:06.5]} 26. Ke3 {[%clk
0:02:07.9]} 26... Rdc8 {[%clk 0:00:53.3]} 27. Rb2 {[%clk 0:02:01.4]} 27... Be8
{[%clk 0:00:50.9]} 28. Kd4 {[%clk 0:01:54]} 28... R8c6 {[%clk 0:00:46]} 29. Ra3
{[%clk 0:01:48.1]} 29... Rc8 {[%clk 0:00:46.3]} 30. g3 {[%clk 0:01:47.9]} 30...
R5c6 {[%clk 0:00:44.5]} 31. h4 {[%clk 0:01:35.2]} 31... h5 {[%clk 0:00:44.8]}
32. c3 {[%clk 0:01:30.9]} 32... Rc5 {[%clk 0:00:44.2]} 33. Be2 {[%clk
0:01:30.6]} 33... g6 {[%clk 0:00:45]} 34. Bd3 {[%clk 0:01:31.3]} 34... Bd7
{[%clk 0:00:45.8]} 35. Rc2 {[%clk 0:01:22.8]} 35... R8c6 {[%clk 0:00:44.9]} 36.
Rb3 {[%clk 0:01:17]} 36... Rc4+ {[%clk 0:00:44]} 37. Bxc4 {[%clk 0:01:13.7]}
37... Rxc4+ {[%clk 0:00:45.4]} 38. Kd3 {[%clk 0:01:12.9]} 38... Bxa4 {[%clk
0:00:46.9]} 39. Rcb2 {[%clk 0:01:10.5]} 39... Bxb3 {[%clk 0:00:47]} 40. Rxb3
{[%clk 0:01:12.4]} 40... a4 {[%clk 0:00:48.2]} 41. Rb5 {[%clk 0:01:10.8]} 41...
Kd7 {[%clk 0:00:48.4]} 42. Ra5 {[%clk 0:01:11.3]} 42... Kc6 {[%clk 0:00:48.4]}
43. Ra8 {[%clk 0:01:12.3]} 43... Kxb6 {[%clk 0:00:49.7]} 44. Rf8 {[%clk
0:01:13]} 44... Rc7 {[%clk 0:00:50.4]} 45. Ra8 {[%clk 0:01:13.3]} 45... Kb5
{[%clk 0:00:51.3]} 46. Kd4 {[%clk 0:01:12.8]} 46... b6 {[%clk 0:00:52.6]} 47.
Kd3 {[%clk 0:01:12.6]} 47... Rb7 {[%clk 0:00:49.5]} 48. Kd4 {[%clk 0:01:11.3]}
48... Rc7 {[%clk 0:00:48.5]} 49. Kd3 {[%clk 0:01:12.6]} 49... Re7 {[%clk
0:00:48.7]} 50. Kd4 {[%clk 0:01:13.2]} 50... Rd7 {[%clk 0:00:50.1]} 51. Kd3
{[%clk 0:01:08.2]} 51... Rc7 {[%clk 0:00:50.9]} 52. Kd4 {[%clk 0:01:05.1]} 52...
Rc4+ {[%clk 0:00:50.3]} 53. Kd3 {[%clk 0:01:06.5]} 53... a3 {[%clk 0:00:43.8]}
54. Rxa3 {[%clk 0:01:06.7]} 54... Ra4 {[%clk 0:00:44.9]} 55. Rb3+ {[%clk
0:01:08]} 55... Kc5 {[%clk 0:00:45.8]} 56. Rb2 {[%clk 0:01:07.2]} 56... Ra3
{[%clk 0:00:45.7]} 57. Rb4 {[%clk 0:01:07.2]} 57... b5 {[%clk 0:00:46.6]} 58.
Rd4 {[%clk 0:01:05.8]} 58... Ra4 {[%clk 0:00:46.3]} 0-1

[Event "*** Biggest EVER Titled Tuesday"]
[Site "Chess.com"]
[Date "2018.04.17"]
[Round "5"]
[White "nubair1198"]
[Black "Vamostodorecto"]
[Result "1-0"]
[WhiteElo "2535"]
[BlackElo "2369"]
[TimeControl "180+2"]
[EndTime "14:09:14 PDT"]
[Termination "nubair1198 won on time"]

1. d4 {[%clk 0:03:01.9]} 1... Nf6 {[%clk 0:02:59.3]} 2. c4 {[%clk 0:03:03.3]}
2... g6 {[%clk 0:03:00.3]} 3. Nc3 {[%clk 0:03:04.8]} 3... d5 {[%clk 0:03:00.9]}
4. Nf3 {[%clk 0:03:05.2]} 4... Bg7 {[%clk 0:03:01.4]} 5. h4 {[%clk 0:03:06]}
5... dxc4 {[%clk 0:02:50.9]} 6. e4 {[%clk 0:03:05.8]} 6... c5 {[%clk 0:02:49.1]}
7. d5 {[%clk 0:03:07.3]} 7... Bg4 {[%clk 0:02:06.4]} 8. Qa4+ {[%clk 0:02:20.5]}
8... Qd7 {[%clk 0:01:52.5]} 9. Qxd7+ {[%clk 0:02:16.6]} 9... Nbxd7 {[%clk
0:01:48]} 10. Nd2 {[%clk 0:02:13.8]} 10... Ne5 {[%clk 0:01:45.9]} 11. Nxc4
{[%clk 0:02:12.9]} 11... Nfd7 {[%clk 0:01:31.7]} 12. Be3 {[%clk 0:02:02.9]}
12... b6 {[%clk 0:01:21.9]} 13. Nd2 {[%clk 0:01:51.6]} 13... Nf6 {[%clk
0:01:14.3]} 14. Bb5+ {[%clk 0:01:36.2]} 14... Bd7 {[%clk 0:01:14.3]} 15. f4
{[%clk 0:01:32.4]} 15... Nfg4 {[%clk 0:00:57.9]} 16. Rh3 {[%clk 0:01:14.3]}
16... Nxe3 {[%clk 0:00:47.7]} 17. Rxe3 {[%clk 0:01:16.2]} 17... Ng4 {[%clk
0:00:45.4]} 18. Rd3 {[%clk 0:01:11.6]} 18... a6 {[%clk 0:00:39.9]} 19. Bxd7+
{[%clk 0:01:11.8]} 19... Kxd7 {[%clk 0:00:41.8]} 20. Nc4 {[%clk 0:01:12.8]}
20... Kc7 {[%clk 0:00:35.1]} 21. a4 {[%clk 0:01:13.3]} 21... Bf6 {[%clk
0:00:28.6]} 22. g3 {[%clk 0:01:13.7]} 22... Bd4 {[%clk 0:00:25.9]} 23. Ne2
{[%clk 0:01:06.3]} 23... b5 {[%clk 0:00:20.1]} 24. axb5 {[%clk 0:00:40.8]} 24...
axb5 {[%clk 0:00:20.3]} 25. Rxa8 {[%clk 0:00:42.7]} 25... Rxa8 {[%clk
0:00:21.3]} 26. Na3 {[%clk 0:00:43.8]} 26... Bxb2 {[%clk 0:00:16.5]} 27. Nxb5+
{[%clk 0:00:45.3]} 27... Kb6 {[%clk 0:00:17.1]} 28. Rb3 {[%clk 0:00:46.7]} 28...
Ra1+ {[%clk 0:00:17.5]} 29. Kd2 {[%clk 0:00:46.9]} 29... Bg7 {[%clk 0:00:16.9]}
30. Nd6+ {[%clk 0:00:43.4]} 30... Kc7 {[%clk 0:00:15.6]} 31. Ne8+ {[%clk
0:00:43.8]} 31... Kd7 {[%clk 0:00:13.5]} 32. Nxg7 {[%clk 0:00:44.6]} 32... Ra2+
{[%clk 0:00:14.5]} 33. Ke1 {[%clk 0:00:42.8]} 33... Ra1+ {[%clk 0:00:15.4]} 34.
Kd2 {[%clk 0:00:44.4]} 34... Ra2+ {[%clk 0:00:16.5]} 35. Kd1 {[%clk 0:00:44.4]}
35... Nf2+ {[%clk 0:00:15]} 36. Ke1 {[%clk 0:00:44.9]} 36... Nxe4 {[%clk
0:00:14.8]} 37. Rb7+ {[%clk 0:00:46.1]} 37... Kd6 {[%clk 0:00:15.1]} 38. Nc1
{[%clk 0:00:32.8]} 38... Ra1 {[%clk 0:00:10.5]} 39. Kd1 {[%clk 0:00:34.4]} 39...
Nxg3 {[%clk 0:00:08.7]} 40. Kc2 {[%clk 0:00:33]} 40... Kxd5 {[%clk 0:00:06.2]}
41. Rxe7 {[%clk 0:00:32.3]} 41... Ra4 {[%clk 0:00:06.2]} 42. Rxf7 {[%clk
0:00:32.9]} 42... Rc4+ {[%clk 0:00:06.9]} 43. Kb2 {[%clk 0:00:33.1]} 1-0

[Event "*** Biggest EVER Titled Tuesday"]
[Site "Chess.com"]
[Date "2018.04.17"]
[Round "5"]
[White "Shtembuliak"]
[Black "Noukii"]
[Result "1-0"]
[WhiteElo "2644"]
[BlackElo "2629"]
[TimeControl "180+2"]
[EndTime "14:09:16 PDT"]
[Termination "Shtembuliak won by resignation"]

1. c4 {[%clk 0:03:01.9]} 1... e5 {[%clk 0:03:00.4]} 2. g3 {[%clk 0:03:01.6]}
2... Nf6 {[%clk 0:03:01.2]} 3. Bg2 {[%clk 0:03:01.1]} 3... h6 {[%clk 0:03:02.7]}
4. Nf3 {[%clk 0:02:53.8]} 4... Nc6 {[%clk 0:02:51]} 5. Nc3 {[%clk 0:02:51.5]}
5... Bc5 {[%clk 0:02:31.2]} 6. O-O {[%clk 0:02:48.7]} 6... d6 {[%clk 0:02:30.4]}
7. a3 {[%clk 0:02:39.7]} 7... a5 {[%clk 0:02:21.8]} 8. e3 {[%clk 0:02:32.7]}
8... O-O {[%clk 0:02:21.8]} 9. Qc2 {[%clk 0:02:25.9]} 9... Re8 {[%clk
0:02:17.2]} 10. b3 {[%clk 0:02:19.7]} 10... e4 {[%clk 0:02:09.9]} 11. Ne1 {[%clk
0:02:20]} 11... Bf5 {[%clk 0:02:10.9]} 12. f3 {[%clk 0:02:07.4]} 12... exf3
{[%clk 0:02:10.6]} 13. Qxf5 {[%clk 0:02:07.6]} 13... fxg2 {[%clk 0:02:11.6]} 14.
Nxg2 {[%clk 0:02:07.5]} 14... Qc8 {[%clk 0:02:02.5]} 15. Bb2 {[%clk 0:02:03.1]}
15... Qxf5 {[%clk 0:01:54.7]} 16. Rxf5 {[%clk 0:02:05]} 16... Ne7 {[%clk
0:01:35.3]} 17. Rxf6 {[%clk 0:01:49.6]} 17... gxf6 {[%clk 0:01:36.4]} 18. Ne4
{[%clk 0:01:50.6]} 18... Red8 {[%clk 0:01:26.7]} 19. Bxf6 {[%clk 0:01:47.3]}
19... Kf8 {[%clk 0:01:25.6]} 20. Nf4 {[%clk 0:01:45.7]} 20... Rd7 {[%clk
0:01:16.2]} 21. Nh5 {[%clk 0:01:32.5]} 21... Ng8 {[%clk 0:01:17.4]} 22. Bg7+
{[%clk 0:01:27.5]} 22... Ke7 {[%clk 0:01:18.3]} 23. d4 {[%clk 0:01:25.1]} 23...
Ba7 {[%clk 0:01:18.4]} 24. Rf1 {[%clk 0:01:25.3]} 24... c6 {[%clk 0:01:08.3]}
25. Nef6 {[%clk 0:01:22.4]} 25... Rdd8 {[%clk 0:01:05.4]} 26. Rf5 {[%clk
0:01:10]} 26... Ke6 {[%clk 0:00:49.3]} 27. Nf4+ {[%clk 0:00:51.9]} 27... Ke7
{[%clk 0:00:49.3]} 28. N4h5 {[%clk 0:00:52.2]} 28... Bb6 {[%clk 0:00:38.1]} 29.
Kg2 {[%clk 0:00:43.8]} 29... Ke6 {[%clk 0:00:33.4]} 30. g4 {[%clk 0:00:41]}
30... Ke7 {[%clk 0:00:25.7]} 31. a4 {[%clk 0:00:38.1]} 31... Rdc8 {[%clk
0:00:19.2]} 32. h3 {[%clk 0:00:37.1]} 32... Nxf6 {[%clk 0:00:19.3]} 33. Nxf6
{[%clk 0:00:35.5]} 33... Bd8 {[%clk 0:00:13.7]} 34. Bxh6 {[%clk 0:00:33.2]}
34... Ke6 {[%clk 0:00:15.1]} 35. Bg5 {[%clk 0:00:29.3]} 35... d5 {[%clk
0:00:14.4]} 36. Re5+ {[%clk 0:00:21.3]} 36... Kd6 {[%clk 0:00:15.3]} 37. c5+
{[%clk 0:00:20.9]} 37... Kc7 {[%clk 0:00:16.2]} 38. Ne8+ {[%clk 0:00:21.7]}
38... Kb8 {[%clk 0:00:17.2]} 39. Nd6 {[%clk 0:00:20.2]} 39... Bc7 {[%clk
0:00:17.8]} 40. Nxc8 {[%clk 0:00:18.7]} 40... Bxe5 {[%clk 0:00:19.3]} 41. Nb6
{[%clk 0:00:19.6]} 41... Bg7 {[%clk 0:00:16.4]} 42. Nxa8 {[%clk 0:00:20.1]}
42... Kxa8 {[%clk 0:00:18.3]} 43. h4 {[%clk 0:00:20.5]} 43... Kb8 {[%clk
0:00:20.2]} 44. h5 {[%clk 0:00:21.4]} 44... Kc8 {[%clk 0:00:21.6]} 45. h6 {[%clk
0:00:21.5]} 45... Bh8 {[%clk 0:00:22.3]} 46. Bf4 {[%clk 0:00:21]} 46... Kd7
{[%clk 0:00:21.9]} 47. g5 {[%clk 0:00:21.5]} 47... f6 {[%clk 0:00:22.8]} 48. g6
{[%clk 0:00:21.8]} 1-0

[Event "*** Biggest EVER Titled Tuesday"]
[Site "Chess.com"]
[Date "2018.04.17"]
[Round "5"]
[White "Buffy7"]
[Black "TregubovP"]
[Result "0-1"]
[WhiteElo "2724"]
[BlackElo "2574"]
[TimeControl "180+2"]
[EndTime "14:09:17 PDT"]
[Termination "TregubovP won on time"]

1. e4 {[%clk 0:03:01.9]} 1... c5 {[%clk 0:03:00.8]} 2. Nf3 {[%clk 0:03:03]} 2...
e6 {[%clk 0:03:02.1]} 3. d4 {[%clk 0:03:04.4]} 3... cxd4 {[%clk 0:03:02.6]} 4.
Nxd4 {[%clk 0:03:06.3]} 4... Nc6 {[%clk 0:03:03.7]} 5. Nc3 {[%clk 0:03:07.8]}
5... Nf6 {[%clk 0:03:04.6]} 6. Ndb5 {[%clk 0:03:07.5]} 6... Bb4 {[%clk
0:03:04.4]} 7. a3 {[%clk 0:03:07.9]} 7... Bxc3+ {[%clk 0:03:05.2]} 8. Nxc3
{[%clk 0:03:09.8]} 8... d5 {[%clk 0:03:06.3]} 9. Bd3 {[%clk 0:03:11.4]} 9... d4
{[%clk 0:03:06.7]} 10. Ne2 {[%clk 0:03:00.5]} 10... e5 {[%clk 0:03:07.6]} 11.
Ng3 {[%clk 0:02:55.7]} 11... Bg4 {[%clk 0:03:03.5]} 12. Qd2 {[%clk 0:02:51.6]}
12... h6 {[%clk 0:02:49.9]} 13. h3 {[%clk 0:02:43.9]} 13... Be6 {[%clk
0:02:49.7]} 14. Qe2 {[%clk 0:02:43.5]} 14... O-O {[%clk 0:02:49]} 15. Nh5 {[%clk
0:02:42.2]} 15... Nxh5 {[%clk 0:02:41.2]} 16. Qxh5 {[%clk 0:02:44.1]} 16... f6
{[%clk 0:02:15.8]} 17. O-O {[%clk 0:02:43.8]} 17... Qe8 {[%clk 0:02:14.1]} 18.
Qe2 {[%clk 0:02:42.9]} 18... Rc8 {[%clk 0:02:10.7]} 19. Bd2 {[%clk 0:02:43]}
19... Qd7 {[%clk 0:02:05]} 20. Kh2 {[%clk 0:02:43.6]} 20... Ne7 {[%clk
0:02:00.1]} 21. Bb4 {[%clk 0:02:18.4]} 21... Rfd8 {[%clk 0:01:53.3]} 22. Bxe7
{[%clk 0:02:07.5]} 22... Qxe7 {[%clk 0:01:53.6]} 23. f4 {[%clk 0:01:54.1]} 23...
Rc5 {[%clk 0:01:51.3]} 24. b4 {[%clk 0:01:40.2]} 24... Rc3 {[%clk 0:01:49.9]}
25. fxe5 {[%clk 0:01:35.9]} 25... Qc7 {[%clk 0:01:50]} 26. Kh1 {[%clk
0:01:20.3]} 26... Qxe5 {[%clk 0:01:51.2]} 27. Qf2 {[%clk 0:01:19]} 27... Bc4
{[%clk 0:01:47.5]} 28. Bxc4+ {[%clk 0:01:11.9]} 28... Rxc4 {[%clk 0:01:47.5]}
29. Rad1 {[%clk 0:01:11.6]} 29... Qxe4 {[%clk 0:01:45.3]} 30. Rfe1 {[%clk
0:01:12.8]} 30... Qxc2 {[%clk 0:01:45.3]} 31. Qg3 {[%clk 0:01:06.4]} 31... Kh7
{[%clk 0:01:33.6]} 32. Qf3 {[%clk 0:00:55.5]} 32... Rc7 {[%clk 0:01:04.4]} 33.
Rd3 {[%clk 0:00:54.7]} 33... Qc4 {[%clk 0:00:58]} 34. Qf5+ {[%clk 0:00:48.1]}
34... Kh8 {[%clk 0:00:58.9]} 35. Re6 {[%clk 0:00:48.2]} 35... Qd5 {[%clk
0:00:55.2]} 36. Qg4 {[%clk 0:00:42.9]} 36... Kh7 {[%clk 0:00:44.6]} 37. Rg3
{[%clk 0:00:33.7]} 37... Kh8 {[%clk 0:00:35.2]} 38. Re1 {[%clk 0:00:26.8]} 38...
d3 {[%clk 0:00:33.8]} 39. Kh2 {[%clk 0:00:12.5]} 39... d2 {[%clk 0:00:34.7]} 40.
Rd1 {[%clk 0:00:13.8]} 40... Qe5 {[%clk 0:00:31.5]} 41. Qg6 {[%clk 0:00:07.5]}
41... Rdd7 {[%clk 0:00:22.4]} 42. Kh1 {[%clk 0:00:04.6]} 42... Rc1 {[%clk
0:00:21.4]} 0-1

[Event "*** Biggest EVER Titled Tuesday"]
[Site "Chess.com"]
[Date "2018.04.17"]
[Round "5"]
[White "Gajuchess"]
[Black "Ginger_GM"]
[Result "1-0"]
[WhiteElo "2593"]
[BlackElo "2448"]
[TimeControl "180+2"]
[EndTime "14:09:20 PDT"]
[Termination "Gajuchess won by resignation"]

1. Nf3 {[%clk 0:03:01.9]} 1... f5 {[%clk 0:03:00.4]} 2. g3 {[%clk 0:03:00.1]}
2... Nf6 {[%clk 0:03:00.8]} 3. Bg2 {[%clk 0:02:59]} 3... d6 {[%clk 0:03:02]} 4.
O-O {[%clk 0:03:00.5]} 4... e5 {[%clk 0:03:02.3]} 5. c4 {[%clk 0:03:00.5]} 5...
Be7 {[%clk 0:03:02.2]} 6. Nc3 {[%clk 0:02:59.5]} 6... O-O {[%clk 0:03:02.2]} 7.
d3 {[%clk 0:03:00.8]} 7... Qe8 {[%clk 0:03:02.9]} 8. e3 {[%clk 0:02:59.7]} 8...
Qh5 {[%clk 0:03:03]} 9. Nd2 {[%clk 0:03:00.3]} 9... Qh6 {[%clk 0:03:03.2]} 10.
Nd5 {[%clk 0:02:58.1]} 10... Nxd5 {[%clk 0:03:03.5]} 11. cxd5 {[%clk 0:02:58.4]}
11... Nd7 {[%clk 0:03:04.6]} 12. Qc2 {[%clk 0:02:58.9]} 12... Bd8 {[%clk
0:03:04.7]} 13. f4 {[%clk 0:02:57.6]} 13... Nf6 {[%clk 0:03:00.2]} 14. Nf3
{[%clk 0:02:26.7]} 14... exf4 {[%clk 0:02:57.4]} 15. gxf4 {[%clk 0:02:25.7]}
15... Bd7 {[%clk 0:02:43.5]} 16. Nd4 {[%clk 0:02:20.1]} 16... Ng4 {[%clk
0:02:16.2]} 17. h3 {[%clk 0:02:19.2]} 17... Nf6 {[%clk 0:02:16.8]} 18. Bd2
{[%clk 0:02:13.3]} 18... Nh5 {[%clk 0:02:17.1]} 19. Qb3 {[%clk 0:02:05.1]} 19...
Rb8 {[%clk 0:02:05.2]} 20. Rac1 {[%clk 0:02:04.5]} 20... Kh8 {[%clk 0:02:04.3]}
21. Rc2 {[%clk 0:01:47.7]} 21... Rg8 {[%clk 0:01:38.1]} 22. e4 {[%clk 0:01:48]}
22... Qg6 {[%clk 0:01:06.8]} 23. e5 {[%clk 0:01:36.4]} 23... dxe5 {[%clk
0:00:42.7]} 24. fxe5 {[%clk 0:01:38.3]} 24... Bg5 {[%clk 0:00:43.9]} 25. e6
{[%clk 0:01:33.9]} 25... Bxd2 {[%clk 0:00:39.8]} 26. Rxd2 {[%clk 0:01:35.8]}
26... Be8 {[%clk 0:00:38.8]} 27. Nxf5 {[%clk 0:01:36.4]} 27... Qg5 {[%clk
0:00:34.8]} 28. Rdf2 {[%clk 0:01:34.5]} 28... Bg6 {[%clk 0:00:34.9]} 29. Qc3
{[%clk 0:01:34.2]} 29... Rgf8 {[%clk 0:00:27.6]} 30. Nxg7 {[%clk 0:01:23.7]}
30... Kg8 {[%clk 0:00:15.6]} 31. Rxf8+ {[%clk 0:01:20.6]} 31... Rxf8 {[%clk
0:00:15.8]} 32. Rxf8+ {[%clk 0:01:21.3]} 32... Kxf8 {[%clk 0:00:17.2]} 33. Nxh5
{[%clk 0:01:19.4]} 33... Bxh5 {[%clk 0:00:18.6]} 34. Qxc7 {[%clk 0:01:02.1]}
34... Kg8 {[%clk 0:00:18]} 35. Kh2 {[%clk 0:01:00]} 35... Bg6 {[%clk 0:00:17]}
36. Qg3 {[%clk 0:00:57.5]} 36... Qf6 {[%clk 0:00:17.3]} 37. Qb8+ {[%clk
0:00:56.4]} 37... Kg7 {[%clk 0:00:18.6]} 38. Qxb7+ {[%clk 0:00:57.2]} 38... Kh6
{[%clk 0:00:19.8]} 39. Qb8 {[%clk 0:00:56]} 39... Bxd3 {[%clk 0:00:19.7]} 40.
Qg3 {[%clk 0:00:54.8]} 40... Bg6 {[%clk 0:00:20]} 41. h4 {[%clk 0:00:53.8]}
41... a5 {[%clk 0:00:20]} 42. Qg5+ {[%clk 0:00:35.5]} 42... Qxg5 {[%clk
0:00:20.6]} 43. hxg5+ {[%clk 0:00:36.7]} 43... Kxg5 {[%clk 0:00:22.5]} 44. d6
{[%clk 0:00:36.6]} 44... Kf6 {[%clk 0:00:23.4]} 45. e7 {[%clk 0:00:33.2]} 45...
Be8 {[%clk 0:00:21.1]} 46. Bh3 {[%clk 0:00:34.1]} 46... h6 {[%clk 0:00:19]} 47.
Kg3 {[%clk 0:00:35]} 47... Ke5 {[%clk 0:00:18.8]} 48. d7 {[%clk 0:00:35.3]}
48... Bxd7 {[%clk 0:00:20.4]} 49. Bxd7 {[%clk 0:00:35.1]} 49... Kd6 {[%clk
0:00:22.3]} 50. e8=Q {[%clk 0:00:35.4]} 1-0